Cogmind - Beta 16 @@@ ROGUE MODE // 2026.02.07 @ 10:04:09 Player: Bikerider58 Result: Self-destructed Performance ------------- Evolutions (3) 1500 Regions Visited (12) 2400 Robots Destroyed (235) 1175 Value Destroyed (9609) 9609 Prototype IDs (39) 780 Alien Tech Used (0) 0 Bonus (3866) 3866 TOTAL SCORE: 19330 Bonus ------- High Alert Combat Kills 2810 Follower Combat Kills 356 Entered Garrisons 400 Aligned with FarCom 300 Cogmind --------- Core Integrity 442/700 Matter 179/300 Energy 300/300 System Corruption 6% Temperature Cool (0) Movement Treading (145) Location -7/Storage Parts ------- > --- POWER (1) -------- Enhanced Nuclear Core > --- PROPULSION (4) --- Advanced Treads Advanced Treads Advanced Treads Advanced Treads > --- UTILITY (4) ------ High-capacity Storage Unit Advanced Targeting Computer Core Analyzer Light Regenerative Plating > --- WEAPON (4) ------- Precision Beam Rifle Cooled Pulse Rifle Cooled Pulse Rifle Cooled Pulse Rifle > --- INVENTORY (20) --- Improved Carbon-fiber Leg Improved Carbon-fiber Leg Improved Carbon-fiber Leg Improved Titanium Leg Improved Titanium Leg Improved Titanium Leg Improved Titanium Leg Structural Scanner Experimental Sensor Array High-powered Tractor Beam Improved Spread Laser Improved Spread Laser Flak Gun Flak Gun XL Autogun Array Heavy Missile Launcher Powered Hammer Peak State ------------ > --- POWER ------------ Enhanced Nuclear Core > --- PROPULSION ------- Medium Treads Medium Treads Armored Huge Wheel > --- UTILITY ---------- Advanced Heat Sink High-capacity Storage Unit Advanced Targeting Computer Core Analyzer > --- WEAPON ----------- Cooled Pulse Rifle Cooled Pulse Rifle Cooled Pulse Rifle Cooled Pulse Rifle > --- INVENTORY -------- Light Treads Light Treads Light Treads Improved Carbon-fiber Leg Improved Carbon-fiber Leg Improved Carbon-fiber Leg Improved Carbon-fiber Leg Cryofiber Web Structural Scanner Experimental Sensor Array High-powered Tractor Beam Improved Spread Laser Improved Spread Laser Flak Gun XL Autogun Array Heavy Missile Launcher Powered Hammer [Rating: 63] Favorites ----------- Power Light Nuclear Core Engine Heavy Ion Engine Power Core Light Nuclear Core Propulsion Light Treads Treads Light Treads Wheel Armored Huge Wheel Flight Unit Improved Flight Unit Utility High-capacity Storage Unit Device Improved Heat Sink Storage High-capacity Storage Unit Processor Core Analyzer Protection Improved Medium Armor Plating Weapon High-powered Shotgun Energy Gun Improved Spread Laser Ballistic Gun High-powered Shotgun Ballistic Cannon Mini Assault Cannon Launcher Mini Grenade Launcher Impact Weapon Heavy Flail Slashing Weapon Mining Claw Build | -11 -10 -10 -9 -9 -9 -8 -8 -8 -8 -8 -7 -7 ------- Run | Yrd Mat Min Mat Min Exi Min Mat Gar Mat Gar Fac Sto Slots Evolved 6 | . . . 2 . . . 2 . . . 2 . Power . | . . . . . . . . . . . . . Propulsion 2 | . . . . . . . 1 . . . 1 . Utility 2 | . . . 1 . . . . . . . 1 . Weapon 2 | . . . 1 . . . 1 . . . . . Parts Attached 132 | 7 8 2 8 2 1 2 11 13 28 11 16 23 Power 17 | 1 2 . 1 . . 1 1 2 5 1 1 2 Engine 8 | 1 2 . 1 . . 1 . 1 . 1 1 . Core 9 | . . . . . . . 1 1 5 . . 2 Reactor . | . . . . . . . . . . . . . Propulsion 40 | 2 2 . 1 . 1 . 3 5 11 3 4 8 Treads 37 | 2 2 . . . 1 . 3 5 11 2 3 8 Leg . | . . . . . . . . . . . . . Wheel 2 | . . . . . . . . . . 1 1 . Hover . | . . . . . . . . . . . . . Flight 1 | . . . 1 . . . . . . . . . Utility 24 | 2 2 1 2 1 . . 3 1 3 . 6 3 Device 16 | 1 1 1 2 1 . . 3 . 2 . 4 1 Storage 2 | 1 1 . . . . . . . . . . . Processor 3 | . . . . . . . . . 1 . 2 . Hackware . | . . . . . . . . . . . . . Protection 3 | . . . . . . . . 1 . . . 2 Artifact . | . . . . . . . . . . . . . Weapon 51 | 2 2 1 4 1 . 1 4 5 9 7 5 10 Energy Gun 17 | . 1 . . . . . 3 1 4 2 . 6 Energy Cannon . | . . . . . . . . . . . . . Ballistic Gun 24 | 2 . 1 4 . . . 1 3 3 4 5 1 Ballistic Cannon 1 | . . . . . . . . . . . . 1 Launcher 5 | . . . . 1 . . . 1 1 1 . 1 Special Weapon . | . . . . . . . . . . . . . Impact Weapon 3 | . . . . . . 1 . . 1 . . 1 Slashing Weapon 1 | . 1 . . . . . . . . . . . Piercing Weapon . | . . . . . . . . . . . . . Special Melee Weapon . | . . . . . . . . . . . . . Unidentified Prototypes 12 | . . . 3 1 . . 1 . 1 . . 6 Parts Lost 21 | . 2 2 . . . . 1 3 6 4 . 3 Power 5 | . 1 . . . . . . 1 2 1 . . Propulsion 5 | . 1 . . . . . . 1 1 . . 2 Utility 3 | . . 1 . . . . . . 1 . . 1 Weapon 8 | . . 1 . . . . 1 1 2 3 . . Highest Loss Streak 3 | . 1 2 . . . . 1 1 3 2 . 1 To Critical Strikes . | . . . . . . . . . . . . . Average Backups 16 | . 13 19 19 20 18 17 16 16 16 16 16 16 Power . | . . 1 1 1 1 . . . . 1 1 . Propulsion 4 | . 1 1 5 7 6 6 6 7 4 3 3 6 Utility 5 | . 4 6 5 5 4 4 4 4 6 6 6 3 Weapon 5 | . 7 9 6 6 6 6 5 5 5 5 5 6 Tool/Special . | . . . . . . . . . . . . . Unused Backups 57 | . 3 3 10 1 3 . 3 2 6 1 6 19 Power 3 | . . . 1 . . . . . 1 . . 1 Propulsion 19 | . . . 3 . . . . 1 4 . 1 10 Utility 15 | . 3 1 1 1 1 . 3 1 . . 2 2 Weapon 19 | . . 2 5 . 1 . . . 1 1 3 6 Tool/Special 1 | . . . . . 1 . . . . . . . Average Slot Usage (%) 97 | . 98 96 99 100 100 100 98 99 99 91 91 92 Engine 6 | . 12 14 11 11 11 11 5 . . 3 7 . Core 3 | . . . . . . . 3 7 8 5 . 6 Treads 22 | . 27 28 21 22 22 22 26 26 26 12 14 17 Wheel 1 | . . . . . . . . . . 7 7 5 Device 14 | . 14 11 21 22 22 22 17 15 11 9 7 5 Storage 10 | . 14 14 11 11 11 11 9 9 9 9 7 7 Processor 3 | . . . . . . . . . . 9 15 15 Protection 1 | . . . . . . . . 2 5 . . 1 Energy Gun 10 | . 7 6 . . . . 11 18 16 21 6 22 Ballistic Gun 20 | . 19 21 32 30 26 26 23 16 19 11 18 6 Impact Weapon 1 | . . . . . . 6 . . . 2 4 . Peak Build Rating 63 | 7 10 10 23 28 27 27 34 36 39 44 58 63 Average Rating 30 | 5 8 9 21 22 24 26 32 32 37 39 50 56 On Entrance 25 | . 7 10 10 23 23 27 26 33 36 37 40 57 Avg Prop Armor Cover (%) 11 | . . . . . . . . . . 8 13 13 Naked Turns . | . . . . . . . . . . . . . Heaviest Build 70 | 13 51 51 59 59 59 59 62 67 70 64 67 67 Greatest Support 88 | 40 40 40 40 40 40 40 62 62 60 60 56 88 Greatest Overweight (x) 3 | . 1 1 1 1 1 1 1 1 1 2 3 2 Average Overweight (x) 1 | . . 1 1 1 1 1 . . . 1 1 1 Largest Inventory Capacity 20 | 8 20 20 20 20 20 20 20 20 20 20 20 20 Average Capacity 19 | 7 16 20 20 20 20 20 20 20 20 20 20 20 Most Carried 20 | 1 20 20 20 20 20 20 20 20 20 20 20 20 Average Carried 18 | . 13 19 19 20 19 19 19 19 19 19 19 19 Final Capacity 20 | 8 20 20 20 20 20 20 20 20 20 20 20 20 Final Carried 20 | 1 20 20 20 20 20 20 20 20 20 20 20 20 Class Distribution -------------------- 31% | Gunner 24% | Scavenger-Skirmisher 20% | Mutant 19% | Skirmisher 4% | Scavenger-Gunner Dominant Class ---------------- Mutant | -10/Materials Mutant | -10/Mines Gunner | -9/Materials Gunner | -9/Mines Gunner | -9/Exiles Mutant | -8/Mines Skirmisher | -8/Materials Scavenger-Skirmisher | -8/Garrison Scavenger-Skirmisher | -8/Materials Scavenger-Skirmisher | -8/Garrison Gunner | -7/Factory Gunner | -7/Storage Resources | -11 -10 -10 -9 -9 -9 -8 -8 -8 -8 -8 -7 -7 ----------- Run | Yrd Mat Min Mat Min Exi Min Mat Gar Mat Gar Fac Sto Matter Collected 5183 | 256 486 202 514 . . 48 504 411 1276 532 595 359 Remotely 50 | . . . . . . . . . . . 50 . Salvage Created 8173 | 84 486 167 729 16 . . 629 931 2386 1022 663 1060 Parts 433 | 5 28 14 50 . . . 30 55 120 49 40 42 Haulers Intercepted 9 | . 1 . 2 . . . 1 . 4 . . 1 Recyclers Shooed 4 | . . . . . . . . . 2 . . 2 Parts Field Recycled . | . . . . . . . . . . . . . Retrieved Matter . | . . . . . . . . . . . . . Parts Self-Destructed . | . . . . . . . . . . . . . Prevented . | . . . . . . . . . . . . . Parts Restored . | . . . . . . . . . . . . . Kills | -11 -10 -10 -9 -9 -9 -8 -8 -8 -8 -8 -7 -7 ------- Run | Yrd Mat Min Mat Min Exi Min Mat Gar Mat Gar Fac Sto Combat Hostiles Destroyed 197 | . 14 5 17 3 . . 18 28 54 26 13 19 Guns 173 | . 14 5 17 2 . . 13 19 47 26 13 17 Cannons 1 | . . . . . . . . . . . . 1 AOE 22 | . . . . 1 . . 5 9 7 . . . Classes Destroyed 19 | 2 4 1 4 1 . . 1 3 1 2 . . Worker 9 | . . 1 1 . . . . . 5 . 1 1 Builder 6 | . . . 1 . . . . . 2 . 3 . Tunneler 5 | 1 1 2 . . . . . . . . 1 . Hauler 9 | . 1 . 2 . . . 1 . 4 . . 1 Recycler 6 | 1 . . 1 . . . 1 . 2 . 1 . Mechanic 1 | . . . 1 . . . . . . . . . Operator 3 | . . . 2 . . . . . 1 . . . Watcher 2 | . 1 . . . . . . . . . . 1 Swarmer 32 | . 3 3 3 . . . 6 8 2 7 . . Cutter 2 | . . . . . . . . . . 2 . . Grunt 90 | . 11 2 10 . . . 8 9 32 6 4 8 Brawler 8 | . . . . . . . . 1 5 2 . . Duelist 4 | . . . . . . . 1 . 2 1 . . Protector 4 | . . . . . . . . . 3 . 1 . Sentry 33 | . . . 4 . . . 3 8 8 4 1 5 Demolisher 4 | . . . . . . . . 1 . . 3 . Hunter 10 | . . . . . . . . 1 2 1 1 5 Programmer 7 | . . . . . . . . . . 3 3 1 Assembled 3 | . . . . 3 . . . . . . . . Best Kill Streak 13 | 2 4 3 6 3 . . 7 8 13 5 8 6 Combat Bots Only 10 | . 3 3 5 3 . . 7 8 10 5 6 5 Max Kills in Single Turn 6 | 1 1 2 2 1 . . 6 3 4 2 2 2 Gunslinging 1 | . . 1 1 . . . . . . 1 1 1 Exploded 5 | . . . . 1 . . 5 3 3 . . . Melee . | . . . . . . . . . . . . . Uniques/NPCs Destroyed . | . . . . . . . . . . . . . Combat | -11 -10 -10 -9 -9 -9 -8 -8 -8 -8 -8 -7 -7 -------- Run | Yrd Mat Min Mat Min Exi Min Mat Gar Mat Gar Fac Sto Hostile Shots Fired 665 | . 90 29 50 5 . . 50 47 134 71 46 143 Missed 177 | . 31 9 12 2 . . 13 11 27 12 12 48 Hits 488 | . 59 20 38 3 . . 37 36 107 59 34 95 Melee 16 | . . . . 1 . . 1 . 9 5 . . Projectile 472 | . 59 20 38 2 . . 36 36 98 54 34 95 AOE 9 | . . . . . . . . 2 . 2 5 . Critical Strikes 16 | . 1 . . . . . 3 2 2 3 4 1 Part Disruptions 1 | . . . . . . . . . . 1 . . Damage Taken 7212 | . 660 233 520 56 . . 523 597 2118 882 668 955 Core 879 | . 92 10 55 10 . . 10 90 240 114 149 109 Absorbed by Shields 36 | . . . . . . . . . . 36 . . Regen/Repaired (Parts) 532 | . 64 . 257 . . . 104 . 107 . . . Core Remaining (%) 64 | 100 . 59 . . . 83 . . . 17 . . Volleys Fired 418 | 3 51 21 36 4 . . 27 60 85 62 27 42 Largest 4 | 2 2 2 3 3 . . 4 4 4 4 4 4 Hottest 256 | 40 85 40 75 80 . . 216 216 239 256 201 121 Shots Fired 1259 | 6 102 38 108 10 . . 106 158 322 157 100 152 Gun 1240 | 6 102 38 108 8 . . 106 153 318 155 100 146 Cannon 6 | . . . . . . . . . . . . 6 Launcher 13 | . . . . 2 . . . 5 4 2 . . Special . | . . . . . . . . . . . . . Kinetic 695 | 6 83 38 108 8 . . 74 47 180 56 78 17 Thermal 546 | . 19 . . . . . 32 106 138 94 22 135 Explosive 13 | . . . . 2 . . . 5 4 2 . . Electromagnetic 5 | . . . . . . . . . . 5 . . Robot Hit Streak 73 | 5 10 7 7 4 . . 10 25 17 73 16 21 Robot Miss Streak 12 | . 8 3 8 5 . . 4 3 8 12 3 2 Penetration Max 1 | . . . . . . . . . 1 . 1 . Secondary Targets 25 | . 1 1 2 . . . 3 . 5 8 2 3 Max Gunslinging Chain 2 | . 1 1 2 . . . 1 . 1 1 1 1 Shots Hit Robots 829 | 5 69 24 70 5 . . 71 99 216 98 68 104 Core Hits 708 | 4 40 11 38 5 . . 54 91 248 115 56 46 Critical Kills 1 | . . . . . . . . . . . 1 . Critical Parts Destroyed 4 | . 1 . 2 . . . . . . 1 . . Critical Strikes 20 | . 1 . 2 . . . . 2 2 2 1 10 Burn 15 | . . . . . . . . 2 2 1 . 10 Destroy 5 | . 1 . 2 . . . . . . 1 1 . Melee Attacks 44 | . 7 . . . . 2 1 . 4 13 15 2 Impact 37 | . . . . . . 2 1 . 4 13 15 2 Slashing 7 | . 7 . . . . . . . . . . . Piercing . | . . . . . . . . . . . . . Sneak Attacks 5 | . . . . . . . . . 1 . 4 . Combat Hostiles . | . . . . . . . . . . . . . Follow-up Attacks . | . . . . . . . . . . . . . Damage Inflicted 18818 | 72 888 298 1305 117 . . 1860 2489 5928 1888 1856 2117 Guns 15121 | 66 870 298 1294 54 . . 1145 1751 4386 1877 1342 2038 Cannons 53 | . . . . . . . . . . . . 53 Explosions 2983 | . . . . 63 . . 715 738 1359 11 97 . Melee 513 | . . . . . . . . . 120 . 393 . Ramming 148 | 6 18 . 11 . . . . . 63 . 24 26 Kinetic 7157 | 66 610 298 1294 54 . . 740 511 2064 419 941 160 Thermal 8062 | . 260 . . . . . 405 1240 2322 1406 498 1931 Explosive 2886 | . . . . 63 . . 715 738 1359 11 . . Electromagnetic 52 | . . . . . . . . . . 52 . . Impact 513 | . . . . . . . . . 120 . 393 . Slashing . | . . . . . . . . . . . . . Piercing . | . . . . . . . . . . . . . Highest Corruption 9 | . . . . . . . . . 7 9 6 6 Average Corruption 6 | . . . . . . . . . 5 8 3 6 Corruption Purged . | . . . . . . . . . . . . . Corruption Blocked . | . . . . . . . . . . . . . Effects 144 | . . . . . . . . . 61 47 13 23 Message Errors 36 | . . . . . . . . . 16 9 3 8 Matter Fused 35 | . . . . . . . . . 16 12 2 5 Heat Flow Errors 10 | . . . . . . . . . 3 3 1 3 Energy Discharges 17 | . . . . . . . . . 5 10 2 . Data Loss (minor) 22 | . . . . . . . . . 11 3 4 4 Data Loss (major) 6 | . . . . . . . . . 2 3 1 . Misfires 8 | . . . . . . . . . 3 4 . 1 Alerts 6 | . . . . . . . . . 4 2 . . Weapon Failures 4 | . . . . . . . . . 1 1 . 2 Overload Shots . | . . . . . . . . . . . . . Overflow Damage 310 | . . . . . . . 102 2 90 . 116 . Projectiles . | . . . . . . . . . . . . . Explosions 107 | . . . . . . . 102 2 3 . . . Melee 203 | . . . . . . . . . 87 . 116 . Knockbacks 3 | . . . . . . . . . 1 . 1 1 Impact 2 | . . . . . . . . . 1 . 1 . Kinetic 1 | . . . . . . . . . . . . 1 Secondary . | . . . . . . . . . . . . . Self-Inflicted Damage 246 | . . . . 20 . . 36 31 153 . 6 . Shots 7 | . . . . 1 . . 1 1 4 . . . Rammed 24 | 2 2 . 6 . . . . . 8 . 4 2 Targets Rammed 28 | 2 3 . 7 . . . . . 9 . 4 3 Kicked . | . . . . . . . . . . . . . Crushed 4 | . 1 . 1 . . . . . 1 . . 1 Highest Temperature 301 | . 20 2 2 . . . 72 81 276 301 162 222 Average Temperature 66 | . 4 2 2 . . . 18 33 78 100 21 86 Received Heat Transfer 2302 | . 360 114 180 40 . . 180 153 801 156 81 237 Siege Activations . | . . . . . . . . . . . . . Martial Activations . | . . . . . . . . . . . . . Shielding Activations . | . . . . . . . . . . . . . Robots Disrupted . | . . . . . . . . . . . . . Combat Hostiles . | . . . . . . . . . . . . . Robots Corrupted 2 | . . . . . . . . . . . 2 . Combat Hostiles . | . . . . . . . . . . . . . Parts Fried 7 | . . . . . . . . . 2 . 5 . Impact Corruptions 5 | . . . . . . . . . 2 . 3 . Robots Melted 1 | . . . . . . . . . . . . 1 Combat Hostiles 1 | . . . . . . . . . . . . 1 Parts Melted 20 | . . . . . . . . 2 5 . . 13 Heat Transferred 11420 | . 315 . . . . . 534 1819 2437 1491 347 4477 Parts Sabotaged . | . . . . . . . . . . . . . Parts Stolen . | . . . . . . . . . . . . . Parts Stripped . | . . . . . . . . . . . . . Power Chain Reactions . | . . . . . . . . . . . . . Alert | -11 -10 -10 -9 -9 -9 -8 -8 -8 -8 -8 -7 -7 ------- Run | Yrd Mat Min Mat Min Exi Min Mat Gar Mat Gar Fac Sto Maximum Alert Level 5 | . . . . . . . 1 4 4 5 4 3 Low Security (%) 41 | 100 100 100 100 100 . 100 22 3 . . . . Level 1 6 | . . . . . . . 77 15 . . . . Level 2 12 | . . . . . . . . 15 46 . . 48 Level 3 25 | . . . . . . . . 41 37 21 85 51 Level 4 10 | . . . . . . . . 24 15 34 14 . Level 5 3 | . . . . . . . . . . 43 . . High Security . | . . . . . . . . . . . . . Max Security . | . . . . . . . . . . . . . Sterilizations 1 | . . . . . . . . . 1 . . . Peak Influence 1915 | 10 182 70 142 19 . 2 387 1254 1429 1915 1138 822 Initial 1005 | . . 34 . 19 . . . 176 611 924 1005 497 Average 544 | 1 65 11 68 1 . . 241 820 828 1450 1023 652 Influence Increases 7144 | 10 555 135 610 17 . 2 637 1128 1550 1031 830 639 Destroy 0b10 Robot/C 4120 | . 280 100 340 . . . 360 660 1040 560 400 380 Destroy 0b10 Robot/NC 255 | 10 15 15 40 . . . 10 10 90 15 35 15 Destroy Leader 854 | . 74 20 104 . . . 72 20 270 50 100 144 Allied During Kill 42 | . . . . . . . . 13 6 4 19 . Successful Hack 189 | . 30 . 60 . . . 11 . 19 30 7 32 Select Force Hacks 150 | . 60 . 30 . . . 60 . . . . . Disable Machine 450 | . . . 30 . . . 75 30 30 45 195 45 Anti-Garrison Action 550 | . . . . . . . . 300 . 250 . . Destroy Structure 324 | . 6 . 6 17 . 2 19 80 35 77 74 8 Lose Combat Pursuer 210 | . 90 . . . . . 30 15 60 . . 15 Influence Decreases 6388 | 10 465 225 559 68 . 2 365 146 1381 539 1650 978 Entered New Map 2834 | . . 56 . 32 . . . 96 643 499 910 598 Time Decay 3124 | 10 445 159 539 36 . 2 355 . 678 . 550 350 Lost Part 200 | . 20 10 . . . . 10 30 60 40 . 30 Lost Ally 60 | . . . . . . . . 20 . . 40 . Purge Threat 170 | . . . 20 . . . . . . . 150 . Squads Dispatched 50 | . 5 . 3 . . . 8 . 15 . 12 7 Investigation 23 | . 4 . 2 . . . 5 . 4 . 2 6 Extermination 4 | . . . . . . . . . . . 3 1 Reinforcement 12 | . 1 . 1 . . . 2 . 6 . 2 . Assault 5 | . . . . . . . . . 3 . 2 . Garrison 6 | . . . . . . . 1 . 2 . 3 . Intercept . | . . . . . . . . . . . . . Searches Triggered . | . . . . . . . . . . . . . Construction Impeded 1 | . . . . . . . . . 1 . . . Haulers Reinforced . | . . . . . . . . . . . . . Active Scanning Responses . | . . . . . . . . . . . . . Cargo Convoy Interrupts . | . . . . . . . . . . . . . Stealth | -11 -10 -10 -9 -9 -9 -8 -8 -8 -8 -8 -7 -7 --------- Run | Yrd Mat Min Mat Min Exi Min Mat Gar Mat Gar Fac Sto Distress Signals 14 | . 2 . 6 . . . 1 . 5 . . . Communications Jammed . | . . . . . . . . . . . . . Distress Signals . | . . . . . . . . . . . . . Times Spotted 274 | . 33 5 39 3 . . 20 25 82 25 22 20 Peak Tracking Total 11 | . 5 3 4 3 . . 7 4 11 5 5 5 Tactical Retreats 11 | . 4 . . . . . 2 1 3 . . 1 Traps | -11 -10 -10 -9 -9 -9 -8 -8 -8 -8 -8 -7 -7 ------- Run | Yrd Mat Min Mat Min Exi Min Mat Gar Mat Gar Fac Sto Traps Triggered 21 | . 1 . 2 . . . 1 1 6 5 2 3 Indirectly . | . . . . . . . . . . . . . Trap Hack Attempts . | . . . . . . . . . . . . . Triggered . | . . . . . . . . . . . . . Disarmed . | . . . . . . . . . . . . . Reprogrammed . | . . . . . . . . . . . . . Reused . | . . . . . . . . . . . . . Traps Extracted . | . . . . . . . . . . . . . Installed . | . . . . . . . . . . . . . Triggered . | . . . . . . . . . . . . . Machines | -11 -10 -10 -9 -9 -9 -8 -8 -8 -8 -8 -7 -7 ---------- Run | Yrd Mat Min Mat Min Exi Min Mat Gar Mat Gar Fac Sto Machines Disabled 39 | . . . 2 . . . 5 6 2 8 13 3 Max in Single Turn 6 | . . . 1 . . . 2 1 1 1 6 1 Garrison Relay 7 | . . . . . . . . 4 . 3 . . Machines Repaired . | . . . . . . . . . . . . . Machines Dismantled . | . . . . . . . . . . . . . Machines Sabotaged . | . . . . . . . . . . . . . Overloaded Fab Kills . | . . . . . . . . . . . . . Hacking | -11 -10 -10 -9 -9 -9 -8 -8 -8 -8 -8 -7 -7 --------- Run | Yrd Mat Min Mat Min Exi Min Mat Gar Mat Gar Fac Sto Machines Accessed 70 | . 11 . 12 . 1 . 7 3 10 2 13 11 Terminals 47 | . 8 . 9 . . . 3 3 6 2 6 10 Fabricators 2 | . . . . . . . . . . . 2 . Repair Stations 4 | . 1 . 1 . . . 1 . 1 . . . Recycling Units 8 | . 2 . 1 . . . 2 . . . 2 1 Scanalyzers 5 | . . . 1 . . . . . 2 . 2 . Garrison Access 3 | . . . . . . . 1 . 1 . 1 . Total Hacks 203 | . 39 . 44 . 1 . 17 6 32 3 39 22 Successful 96 | . 20 . 24 . 1 . 9 2 16 2 15 7 Failed 106 | . 19 . 20 . . . 8 4 16 1 23 15 Catastrophic 13 | . 3 . 2 . . . . 1 1 . 2 4 Database Lockouts 1 | . . . . . . . . . . . 1 . Manual 88 | . 28 . 26 . 1 . 12 . 11 . 5 5 Terminals 133 | . 32 . 33 . . . 9 6 17 3 14 19 Fabricators 8 | . . . . . . . . . . . 8 . Repair Stations 11 | . 4 . 5 . . . 1 . 1 . . . Recycling Units 20 | . 3 . 1 . . . 6 . . . 7 3 Scanalyzers 25 | . . . 5 . . . . . 12 . 8 . Garrison Access 5 | . . . . . . . 1 . 2 . 2 . Terminal Hacks 30 | . 6 . 6 . 1 . 1 2 1 2 4 7 Part Schematic 1 | . 1 . . . . . . . . . . . Robot Schematic 1 | . 1 . . . . . . . . . . . Robot Analysis 3 | . 2 . . . . . . . . . . 1 Prototype ID Bank 3 | . 1 . 2 . . . . . . . . . Open Door 7 | . . . . . . . . 1 . . . 6 Open DSF 1 | . . . . . . . . . . . 1 . Branch Access Points 1 | . . . . . . . . . . . 1 . Emergency Access Points 2 | . . . . . . . . . 1 1 . . Scanalyzer Index 1 | . . . 1 . . . . . . . . . Unreport Threat 2 | . . . 1 . . . . . . . 1 . Maintenance Status 1 | . . . . . . . 1 . . . . . Recall Investigation 1 | . 1 . . . . . . . . . . . Hauler Manifests 1 | . . . 1 . . . . . . . . . Zone Layout 2 | . . . 1 . . . . . . . 1 . Garrison Registry 1 | . . . . . . . . 1 . . . . Security Stations 1 | . . . . . . . . . . 1 . . Proto ID Catalog 1 | . . . . . 1 . . . . . . . Fabricator Hacks 2 | . . . . . . . . . . . 2 . Load Schematic 2 | . . . . . . . . . . . 2 . Repair Station Hacks 7 | . 3 . 4 . . . . . . . . . Scan Component 4 | . 2 . 2 . . . . . . . . . Repair 3 | . 1 . 2 . . . . . . . . . Recycling Unit Hacks 5 | . . . . . . . 2 . . . 3 . Retrieve Components 5 | . . . . . . . 2 . . . 3 . Scanalyzer 21 | . . . 5 . . . . . 10 . 6 . Insert Component 8 | . . . 2 . . . . . 4 . 2 . Analyze 9 | . . . 2 . . . . . 5 . 2 . Retrieve Study 4 | . . . 1 . . . . . 1 . 2 . Garrison Access Hacks 2 | . . . . . . . 1 . 1 . . . Unlock Access 2 | . . . . . . . 1 . 1 . . . Unauthorized Hacks 29 | . 11 . 9 . . . 5 . 4 . . . Terminals 22 | . 9 . 8 . . . 2 . 3 . . . Botnet 4 | . 2 . 1 . . . . . 1 . . . Operators 3 | . 1 . 2 . . . . . . . . . Skim 15 | . 6 . 5 . . . 2 . 2 . . . Fabricators . | . . . . . . . . . . . . . Repair Stations 2 | . . . . . . . 1 . 1 . . . Patch 2 | . . . . . . . 1 . 1 . . . Recycling Units 5 | . 2 . 1 . . . 2 . . . . . Tunnel 5 | . 2 . 1 . . . 2 . . . . . Scanalyzers . | . . . . . . . . . . . . . Garrison Access . | . . . . . . . . . . . . . Data Cores Recovered . | . . . . . . . . . . . . . Used . | . . . . . . . . . . . . . Hacking Detections 58 | . 8 . 10 . . . 4 2 9 1 13 11 Full Trace Events 7 | . 1 . 1 . . . . . . . 2 3 Feedback Events . | . . . . . . . . . . . . . Feedback Blocked . | . . . . . . . . . . . . . Robot Schematics Acquired 1 | . 1 . . . . . . . . . . . Robots Built . | . . . . . . . . . . . . . Authchips . | . . . . . . . . . . . . . Time . | . . . . . . . . . . . . . Total Robot Build Rating . | . . . . . . . . . . . . . Part Schematics Acquired 8 | . 1 . 2 . . . . . 3 . 2 . Parts Built . | . . . . . . . . . . . . . Authchips . | . . . . . . . . . . . . . Time . | . . . . . . . . . . . . . Total Part Build Rating . | . . . . . . . . . . . . . Part Studies Acquired 4 | . . . 1 . . . . . 1 . 2 . Parts Repaired 3 | . 1 . 2 . . . . . . . . . Time 88 | . 36 . 52 . . . . . . . . . Parts Recycled . | . . . . . . . . . . . . . Recycled Matter . | . . . . . . . . . . . . . Retrieved Matter . | . . . . . . . . . . . . . Retrieved Components 14 | . . . . . . . 12 . . . 2 . Parts Scanalyzed 7 | . . . 2 . . . . . 3 . 2 . Part Schematics Acquired 7 | . . . 2 . . . . . 3 . 2 . Parts Damaged 1 | . . . . . . . . . 1 . . . Bothacking | -11 -10 -10 -9 -9 -9 -8 -8 -8 -8 -8 -7 -7 ------------ Run | Yrd Mat Min Mat Min Exi Min Mat Gar Mat Gar Fac Sto Used RIF Installer . | . . . . . . . . . . . . . Robots Hacked . | . . . . . . . . . . . . . Non-combat . | . . . . . . . . . . . . . Combat . | . . . . . . . . . . . . . Robot Hacks Applied . | . . . . . . . . . . . . . Relay Couplers Released 23 | . . . . . . . . 14 . 9 . . Machine Destruction 23 | . . . . . . . . 14 . 9 . . Fabnet Peak Effective % . | . . . . . . . . . . . . . Robots Rewired 3 | . . . . . . . . 1 . 2 . . Allies Hacked . | . . . . . . . . . . . . . Hacks Repelled . | . . . . . . . . . . . . . Allies | -11 -10 -10 -9 -9 -9 -8 -8 -8 -8 -8 -7 -7 -------- Run | Yrd Mat Min Mat Min Exi Min Mat Gar Mat Gar Fac Sto Total Allies 14 | . . . . . . . . 2 . 2 . 10 Largest Group 10 | . . . . . . . . 1 1 2 2 10 Highest-Rated Group 173 | . . . . . . . . 34 31 42 42 173 Highest-Rated Ally 34 | . . . . . . . . 34 31 21 21 29 Initial Warlord ECA Mod 16 | . . . . . . . . . 8 8 16 16 Total Orders 2 | . . . . . . . . 2 . . . . STAY 1 | . . . . . . . . 1 . . . . FOLLOW 1 | . . . . . . . . 1 . . . . Ally Attacks 62 | . . . . . . . . 7 21 3 31 . Total Damage 1352 | . . . . . . . . 269 276 120 687 . Kills 17 | . . . . . . . . 5 2 2 8 . Allies Corrupted . | . . . . . . . . . . . . . Allies Melted . | . . . . . . . . . . . . . Intel | -11 -10 -10 -9 -9 -9 -8 -8 -8 -8 -8 -7 -7 ------- Run | Yrd Mat Min Mat Min Exi Min Mat Gar Mat Gar Fac Sto Active Infowar (turns) 6363 | 21 760 623 1999 521 627 735 109 . . . 943 25 Sensors 2 | . . . . 2 . . . . . . . . Structural 968 | . . . . . . . . . . . 943 25 Seismic 5395 | 21 760 623 1999 521 627 735 109 . . . . . Robot Analysis Total 3 | . 2 . . . . . . . . . . 1 Derelict Logs Recovered 3 | . . 1 . 2 . . . . . . . . Drone Launches . | . . . . . . . . . . . . . Drone Recoveries . | . . . . . . . . . . . . . Exploration | -11 -10 -10 -9 -9 -9 -8 -8 -8 -8 -8 -7 -7 ------------- Run | Yrd Mat Min Mat Min Exi Min Mat Gar Mat Gar Fac Sto Turns Passed 15373 | 102 1754 830 1999 521 627 735 857 1599 2670 1299 1595 785 Spaces Moved 6257 | 49 522 315 706 210 259 303 437 737 973 575 786 385 Core 3 | 3 . . . . . . . . . . . . Treads 5157 | 46 522 315 706 210 259 303 437 737 973 228 303 118 Legs . | . . . . . . . . . . . . . Wheels 1097 | . . . . . . . . . . 347 483 267 Hover . | . . . . . . . . . . . . . Flight . | . . . . . . . . . . . . . Fastest Speed 50 | 50 160 240 240 240 240 240 155 155 160 115 120 105 Average Speed 195 | 153 206 240 240 240 240 240 155 178 206 168 165 133 Slowest Speed 280 | 160 240 240 240 240 240 240 240 240 240 240 280 240 Overloaded Moves . | . . . . . . . . . . . . . Propulsion Burnouts . | . . . . . . . . . . . . . Robots Hopped . | . . . . . . . . . . . . . Potential Cave-ins . | . . . . . . . . . . . . . Cave-ins Triggered . | . . . . . . . . . . . . . Exploration Rate (%) 57 | 4 81 75 60 52 65 70 44 66 73 65 29 67 Regions Visited 12 Branch Regions 5 Pre-discovered Areas 12 | . 3 1 4 2 . . 2 . . . . . Known Exits Taken 7 | . . 1 1 1 . 1 1 . 1 . 1 . Unknown Exits Taken 3 | 1 1 . . . 1 . . . . . . . Scrap Searched 2 | . . 1 . . . 1 . . . . . . Spaces Dug 50 | . 3 . . . . 2 1 . 3 1 39 1 Terrain Destroyed 213 | . 3 . . 21 . 2 14 30 30 13 97 3 Melee 19 | . 3 . . . . 2 1 . 3 1 8 1 Projectile 7 | . . . . . . . . . 3 . 2 2 AOE 187 | . . . . 21 . . 13 30 24 12 87 . Terrain Rammed . | . . . . . . . . . . . . . Walls Destroyed . | . . . . . . . . . . . . . Machines Disabled . | . . . . . . . . . . . . . Actions | -11 -10 -10 -9 -9 -9 -8 -8 -8 -8 -8 -7 -7 --------- Run | Yrd Mat Min Mat Min Exi Min Mat Gar Mat Gar Fac Sto Total 8422 | 65 1079 352 926 218 267 308 551 924 1422 769 982 559 Wait 1177 | 4 459 4 133 . . . 51 91 269 35 87 44 Move 6246 | 49 521 314 705 209 258 302 436 735 973 574 785 385 Hop . | . . . . . . . . . . . . . Pick Up 114 | 1 23 5 16 1 2 1 9 4 16 7 11 18 Fast Attach 54 | 7 2 1 4 . . . 3 4 6 4 8 15 Attach 23 | . 2 1 2 . . . 4 1 5 5 1 2 Detach 4 | . 1 . 1 . . . . . . . . 2 Swap 120 | . 5 2 5 3 2 2 7 12 26 18 24 14 Drop 148 | . 5 4 17 1 5 1 13 11 29 10 20 32 Fire 418 | 3 51 21 36 4 . . 27 60 85 62 27 42 Melee 44 | . 7 . . . . 2 1 . 4 13 15 2 Ram 1 | . . . . . . . . . . . 1 . Kick . | . . . . . . . . . . . . . Crush 26 | 1 3 . 7 . . . . . 9 . 3 3 Escape Stasis 7 | . . . . . . . . . . 7 . . Rewire 40 | . . . . . . . . 6 . 34 . . Trap . | . . . . . . . . . . . . . Miscellaneous . | . . . . . . . . . . . . . Route ------- -11/Scrapyard -10/Materials (discovered 5 exits: *Mat x3 / [*Min x2]) -10/Mines (discovered 3 exits: *Mat x2 / Sub) -9/Materials (discovered 4 exits: *Mat x3 / *Min) -9/Mines (discovered 3 exits: Mat x2 / *Exi) -9/Exiles -8/Mines (discovered 2 exits: *Mat x2) -8/Materials (discovered 4 exits: *Fac x3 / Gar) -8/Garrison (discovered 3 exits: *Mat x3) -8/Materials (discovered 3 exits: *Fac x2 / Gar) -8/Garrison (discovered 2 exits: *Fac x2) -7/Factory (discovered 6 exits: [*Fac x2] / *Sto x2 / Low x2) -7/Storage (discovered 1 exit: [*Fac]) History --------- Turn | Location | Event 2 | -11/Scrapyard | Met Revision 17 4 | -11/Scrapyard | Discovered new exit (range 15) 103 | -11/Scrapyard | Entered Materials 217 | -10/Materials | Discovered new exit (range 11) 313 | -10/Materials | Build established: Mutant 419 | -10/Materials | Repaired Broken Lgt. Treads 490 | -10/Materials | Discovered new exit (range 6) 949 | -10/Materials | Discovered new exit (range 3) 1520 | -10/Materials | Identified exit to Materials 1583 | -10/Materials | Learned location of Storage (-7) 1638 | -10/Materials | Learned Storage emergency access door positions 1681 | -10/Materials | Learned location of 2 exits from Mines 1803 | -10/Materials | Learned 2 Storage zone layouts 1857 | -10/Materials | Entered Mines 1859 | -10/Mines | Identified exit to Subcaves 2020 | -10/Mines | Received a Rocket Launcher from a helpful Derelict 2315 | -10/Mines | Learned location of Zion (-7) 2687 | -10/Mines | Entered Materials 2687 | -9/Materials | Evolved 2 slots: Utility x1, Weapon x1 2688 | -9/Materials | Identified exit to Materials 3160 | -9/Materials | Repaired Lgt. Treads 3188 | -9/Materials | Repaired Lgt. Treads 3257 | -9/Materials | Build established: Gunner 3607 | -9/Materials | Learned location of Mines (-8) 3676 | -9/Materials | Identified exit to Mines 3731 | -9/Materials | Learned location of 2 exits from Materials 4686 | -9/Materials | Entered Mines 4688 | -9/Mines | Identified exit to Exiles 4876 | -9/Mines | Learned Materials emergency access door positions 5045 | -9/Mines | Assembled infested the area 5050 | -9/Mines | Assisted by a Guerilla fighting off Assembled 5159 | -9/Mines | Found a damaged Exp. Sensor Array with a note attached 5164 | -9/Mines | Found Prototype Device 5165 | -9/Mines | Identified Exp. Sensor Array 5197 | -9/Mines | Deemed a non-threat by the Exiles lab entrance 5207 | -9/Mines | Entered Exiles 5265 | -9/Exiles | Met 8R-AWN 5306 | -9/Exiles | Met EX-HEX 5481 | -9/Exiles | Met EX-BIN 5517 | -9/Exiles | Aligned with FarCom system 5519 | -9/Exiles | Given EX-Vault access code 5575 | -9/Exiles | Opened EX-Vault 5599 | -9/Exiles | Found XL Autogun Array 5652 | -9/Exiles | Warned to stay clear of 0b10 Research branches 5724 | -9/Exiles | Met EX-DEC 5815 | -9/Exiles | Discovered new exit (range 10) 5834 | -9/Exiles | Left Exiles lab with XL Autogun Array 5834 | -9/Exiles | Entered Mines 6134 | -8/Mines | Build established: Skirmisher 6432 | -8/Mines | Discovered exit to Materials (range 14) 6437 | -8/Mines | Build established: Mutant 6557 | -8/Mines | Discovered exit to Materials (range 5) 6569 | -8/Mines | Entered Materials 6569 | -8/Materials | Evolved 2 slots: Propulsion x1, Weapon x1 6570 | -8/Materials | Identified exit to Factory 6780 | -8/Materials | Destroyed 7 combat bots 6869 | -8/Materials | Build established: Skirmisher 7164 | -8/Materials | Discovered exit to Factory (range 3) 7304 | -8/Materials | Identified exit to Garrison 7387 | -8/Materials | Garrison activated, responded to threat 7426 | -8/Materials | Entered Garrison 7460 | -8/Garrison | Triggered checkpoint 7567 | -8/Garrison | Garrison Relay disabled 7800 | -8/Garrison | Triggered checkpoint 7842 | -8/Garrison | Triggered checkpoint 7872 | -8/Garrison | Triggered checkpoint 7897 | -8/Garrison | Triggered checkpoint 7899 | -8/Garrison | Build established: Scavenger-Skirmisher 7921 | -8/Garrison | Destroyed 8 combat bots 7948 | -8/Garrison | Triggered checkpoint 8011 | -8/Garrison | Garrison Relay disabled 8197 | -8/Garrison | Discovered new exit (range 9) 8275 | -8/Garrison | Rescued a captive Derelict 8282 | -8/Garrison | Triggered checkpoint 8301 | -8/Garrison | Garrison Relay disabled 8585 | -8/Garrison | Discovered new exit (range 9) 8665 | -8/Garrison | Discovered new exit (range 21) 8665 | -8/Garrison | Discovered new exit (range 73) 8665 | -8/Garrison | Discovered new exit (range 39) 8672 | -8/Garrison | Triggered checkpoint 8695 | -8/Garrison | Garrison Relay disabled 8838 | -8/Garrison | Attempted to access garrison exit controls, blocked by remote lockdown 9025 | -8/Garrison | Entered Materials 9025 | -8/Materials | Accompanied by 1 ally 9678 | -8/Materials | Discovered exit to Factory (range 8) 10225 | -8/Materials | First assault squad dispatched 10307 | -8/Materials | Destroyed 10 combat bots 10308 | -8/Materials | Lost 3 parts (1p1n1w) 10381 | -8/Materials | Discovered exit to Factory (range 10) 10572 | -8/Materials | Build established: Skirmisher 10643 | -8/Materials | Core integrity fell below 50% 11513 | -8/Materials | Garrison activated, responded to threat 11583 | -8/Materials | Destroyed 9 combat bots 11613 | -8/Materials | Sterilization system engaged 11613 | -8/Materials | Non-combat units ordered to evacuate 11695 | -8/Materials | Identified exit to Garrison 11695 | -8/Materials | Entered Garrison 11780 | -8/Garrison | Triggered checkpoint 11867 | -8/Garrison | Garrison Relay disabled 11975 | -8/Garrison | Triggered checkpoint 12101 | -8/Garrison | Triggered checkpoint 12124 | -8/Garrison | Core integrity fell below 20% 12209 | -8/Garrison | Triggered checkpoint 12247 | -8/Garrison | Garrison Relay disabled 12285 | -8/Garrison | Discovered exit to Factory (range 13) 12413 | -8/Garrison | Triggered checkpoint 12690 | -8/Garrison | Discovered exit to Factory (range 10) 12711 | -8/Garrison | Learned Factory security intel 12716 | -8/Garrison | Build established: Scavenger-Skirmisher 12754 | -8/Garrison | Triggered checkpoint 12799 | -8/Garrison | Garrison Relay disabled 12994 | -8/Garrison | Entered Factory 12994 | -7/Factory | Accompanied by 2 allies 12994 | -7/Factory | Evolved 2 slots: Propulsion x1, Utility x1 13339 | -7/Factory | Discovered new exit (range 5) 13394 | -7/Factory | First assault squad dispatched 13441 | -7/Factory | Build established: Gunner 13599 | -7/Factory | Garrison activated, responded to threat 13838 | -7/Factory | Identified exit to Storage 13838 | -7/Factory | Identified exit to Lower Caves 14075 | -7/Factory | Central database locked down 14567 | -7/Factory | Discovered new exit (range 7) 14589 | -7/Factory | Entered Storage 15110 | -7/Storage | Discovered new exit (range 9) 15201 | -7/Storage | Assisted by bots powering up and referring to "LRC-V3" 15211 | -7/Storage | Found Prototype Protection 15211 | -7/Storage | Identified Lgt. Regenerative Plating 15374 | -7/Storage | Self-destructed Last Messages --------------- >>Open(Door) Sealed Heavy Doors opened. 15309_ Dropped Imp. Carbon-fiber Leg. 15313_ Acquired Imp. Titanium Leg. 15322_ System corrupted: Heat flow error (+239). 15326_ Dropped Lgt. Treads+. 15332_ Acquired Adv. Treads. 15334_ Dropped Lgt. Treads+. 15334_ Acquired Adv. Treads. 15339_ System corrupted: Matter fused (-8). 15339_ Dropped Lgt. Treads+. 15340_ Acquired Imp. Carbon-fiber Leg. 15344_ Dropped Cld. Pulse Rifle. 15346_ Acquired Imp. Carbon-fiber Leg. 15354_ Connecting with Door Terminal... 15354_ ALERT: Suspicious activity at Terminal S001. Dispatching Investigation squad. 15354_ Door Terminal unresponsive. 15355_ Door Terminal disabled. 15358_ System corrupted: Component data lost. Map ----- +----------------------------------------------------+ | | | | | | | | | ????????????????###??????????????????????????? | | ????????????##### #####??????????????????????? | | ????????????#[= #??????????????????????? | | ????????????#! ""#????????????????????? | | #############%""" """ T"#????????????????????? | | # """ """ ""?????????????????????? | | + """ """ #??????????????????????? | | # """ """ #??????????????????????? | | #######+##### """ """ #??????????????????????? | | ???#T #???# #??????????????????????? | | ???### ##??######+#####??????""""????????????? | | ???##! !#??# ## ###???????## #????????????? | | ???##! !#??# # #####?????# #????????????? | | ???##! !#??# # / ! #??????# #????????????? | | ???##! !#??# / #T###??????# #????????????? | | ???######??# T## ###???###### #########????? | | ???????????###### #?????# / ====#????? | | ????????????????# #?????# g # [ = #????? | | ????????????????# #?????# ###### == #????? | | ????????????????# ####??# #????##T######????? | | ????????????????# #??# g#?????###?????????? | | ??????????#######+## #??#@ #?????????????????? | | ??????????# # #### #?????????????????? | | ????????### """ # #?????????????????? | | ????????#"" """ # #?????????????????? | | ?????????"" """ # #########?????????? | | ???????????? + # ****#?????????? | | ###?????????????? # + #?????????? | | #?????????????? ####+#### ****#?????????? | | ??????????????? ??# T###T######?????????? | | "???????????????? ??#" "##?###??????????????? | | ?????????????Y???????#!!!#???????????????????? | | ?????????????????????#!!!#???????????????????? | | ?????????????????????#####???????????????????? | | ?????????????????????????????????????????????? | | ?????????????????????????????????????????????? | | ##???????????????????????????????????????????? | | #???????????????????????????????????????????? | | #???????????????????????????????????????????? | | #???????????????????????????????????????????? | | ##?????????????????????????????????????? " ??? | | ??????????????????????????????????????? ?? | | ??????????????????????????????????????? ?? | | ???????????????????????????????##??????# #?? | | #?????????????????????????????# ??????# #?? | | #?????????????????????????????# ??????# #?? | +----------------------------------------------------+ Best States ------------- Heat Dissipation 67 Energy Generation 17 Energy Capacity 300 Matter Stores 300 Matter Capacity 300 Sight Range 16 Terrain Scan Density 10 Armor Coverage 225 Evasion (%) 40 Targeting Accuracy 8 Core Analysis 6 Recoil Reduction 4 Item Schematics ----------------- Hcp. Storage Unit | -10/Materials | Hacked Hacking Suite | -9/Materials | Scanalyzed Imp. Flight Unit | -9/Materials | Scanalyzed Exp. Sensor Array | -8/Materials | Scanalyzed Core Analyzer | -8/Materials | Scanalyzed Missile Launcher | -8/Materials | Scanalyzed Arm. Huge Wheel | -7/Factory | Scanalyzed Hvy. Missile Launcher | -7/Factory | Scanalyzed Robot Schematics ------------------ M-13 Machinist | -10/Materials | Hacked Fabricated ------------ Nothing Repaired ---------- Lgt. Treads | 54% | -10/Materials | Broken Lgt. Treads | 4% | -9/Materials Lgt. Treads | 12% | -9/Materials Studied --------- Mni. Grenade Launcher | -9/Materials | Hacked Lgt. Treads | -8/Materials | Hacked Arm. Huge Wheel | -7/Factory | Hacked Med. Treads | -7/Factory | Hacked Alien Tech Used ----------------- None Achievements -------------- Bullet Installation Challenges ------------ None Game ------ Seed ExpertDataChainsaw Manual? 0 Play Time 02:10:27 Cumulative 248.5 hours Start 2026.02.02 @ 23:16:06 End 2026.02.07 @ 10:04:09 Sessions 5 Manual Loads 0 Difficulty Rogue Special Mode None Game No. 103 Rogue 98 Adventurer 5 Explorer 0 Win Type - Total 7 Types 3/0/2/1/0/0/0/0/0/1 Lore% 70 Gallery% 72 Achievement% 61 Wizard Run 0 Options --------- Layout 0 ASCII 0 Keyboard 0 Movement Numpad Keybinds 0 Fullscreen 1 Font 18/SmallcapsGlow Map View 76x50 Zoom Use 0% Tactical HUD 1 Map Filters NONE Filters NONE Steam 1 RUN: b216a98e-3b60-4537-baf1-18e31f8bd937